[Event "Titled Tuesday Blitz August 16 Late 2022"]
[White "Abdrlauf, Elham"]
[Black "Vagman, Roy"]
[WhiteFideId "1533533"]
[BlackFideId "2828995"]
[WhiteElo "2430"]
[BlackElo "1956"]
[Result "1-0"]
[Round "01"]
[TimeControl "180+1"]
[Date "2022.08.16"]
[WhiteClock "0:01:37"]
[BlackClock "0:00:17"]

1. e4 {[%clk 0:02:59]}  c5 {[%clk 0:02:56]} 2. Nf3 {[%clk 0:02:36]}  d6 {[%clk 0:02:54]} 3. d4 {[%clk 0:02:35]}  cxd4 {[%clk 0:02:53]} 4. Nxd4 {[%clk 0:02:36]}  Nf6 {[%clk 0:02:54]} 5. Nc3 {[%clk 0:02:35]}  g6 {[%clk 0:02:52]} 6. f3 {[%clk 0:02:34]}  Bg7 {[%clk 0:02:51]} 7. Be3 {[%clk 0:02:33]}  O-O {[%clk 0:02:46]} 8. Qd2 {[%clk 0:02:32]}  Nc6 {[%clk 0:02:44]} 9. O-O-O {[%clk 0:02:31]}  Nxd4 {[%clk 0:02:41]} 10. Bxd4 {[%clk 0:02:31]}  Be6 {[%clk 0:02:41]} 11. h4 {[%clk 0:02:31]}  h5 {[%clk 0:02:31]} 12. g4 {[%clk 0:02:25]}  hxg4 {[%clk 0:02:28]} 13. h5 {[%clk 0:02:25]}  Nxh5 {[%clk 0:01:45]} 14. Bxg7 {[%clk 0:02:21]}  Kxg7 {[%clk 0:01:42]} 15. Rxh5 {[%clk 0:02:19]}  Rh8 {[%clk 0:01:19]} 16. Rxh8 {[%clk 0:02:17]}  Qxh8 {[%clk 0:01:19]} 17. fxg4 {[%clk 0:02:18]}  Bxg4 {[%clk 0:01:19]} 18. Be2 {[%clk 0:02:18]}  Be6 {[%clk 0:01:16]} 19. Nd5 {[%clk 0:02:11]}  Qh4 {[%clk 0:01:10]} 20. Bf3 {[%clk 0:02:04]}  Rc8 {[%clk 0:01:08]} 21. Rh1 {[%clk 0:02:00]}  Bh3 {[%clk 0:01:01]} 22. Bg2 {[%clk 0:01:56]}  Qh6 {[%clk 0:00:25]} 23. Qxh6+ {[%clk 0:01:55]}  Kxh6 {[%clk 0:00:26]} 24. Bxh3 {[%clk 0:01:56]}  Rc5 {[%clk 0:00:21]} 25. Nxe7 {[%clk 0:01:56]}  Re5 {[%clk 0:00:19]} 26. Nd5 {[%clk 0:01:39]}  Rxe4 {[%clk 0:00:20]} 27. Bg2+ {[%clk 0:01:39]}  Rh4 {[%clk 0:00:17]} 28. Rxh4+ {[%clk 0:01:39]}  Kg5 {[%clk 0:00:17]} 29. Rh3 {[%clk 0:01:39]}  f5 {[%clk 0:00:17]} 30. Rg3+ {[%clk 0:01:39]}  Kh4 {[%clk 0:00:17]} 31. Rxg6 {[%clk 0:01:39]}  b5 {[%clk 0:00:18]} 32. Bf3 {[%clk 0:01:39]}  b4 {[%clk 0:00:19]} 33. Ne3 {[%clk 0:01:36]}  b3 {[%clk 0:00:20]} 34. Nxf5+ {[%clk 0:01:36]}  Kh3 {[%clk 0:00:17]} 35. Rh6# {[%clk 0:01:37]} 1-0


[Site "https://www.chess.com"]

[Event "Titled Tuesday Blitz August 16 Late 2022"]
[White "Adury, Anant"]
[Black "Gascon Del Nogal, Jose Rafael"]
[WhiteFideId "30964687"]
[BlackFideId "3902463"]
[WhiteElo "2028"]
[BlackElo "2473"]
[Result "1-0"]
[Round "01"]
[TimeControl "180+1"]
[Date "2022.08.18"]
[WhiteClock "0:00:00"]
[BlackClock "0:00:00"]

1. d4 {[%clk 0:00:00]}  Nf6 {[%clk 0:00:00]} 2. c4 {[%clk 0:00:00]}  g6 {[%clk 0:00:00]} 3. Nc3 {[%clk 0:00:00]}  Bg7 {[%clk 0:00:00]} 4. e4 {[%clk 0:00:00]}  d6 {[%clk 0:00:00]} 5. Be2 {[%clk 0:00:00]}  O-O {[%clk 0:00:00]} 6. Nf3 {[%clk 0:00:00]}  e5 {[%clk 0:00:00]} 7. dxe5 {[%clk 0:00:00]}  dxe5 {[%clk 0:00:00]} 8. Qxd8 {[%clk 0:00:00]}  Rxd8 {[%clk 0:00:00]} 9. Bg5 {[%clk 0:00:00]}  c6 {[%clk 0:00:00]} 10. Nxe5 {[%clk 0:00:00]}  Re8 {[%clk 0:00:00]} 11. f4 {[%clk 0:00:00]}  h6 {[%clk 0:00:00]} 12. Bxf6 {[%clk 0:00:00]}  Bxf6 {[%clk 0:00:00]} 13. O-O-O {[%clk 0:00:00]}  Bxe5 {[%clk 0:00:00]} 14. fxe5 {[%clk 0:00:00]}  Be6 {[%clk 0:00:00]} 15. h3 {[%clk 0:00:00]}  Nd7 {[%clk 0:00:00]} 16. Bg4 {[%clk 0:00:00]}  Nxe5 {[%clk 0:00:00]} 17. Bxe6 {[%clk 0:00:00]}  Rxe6 {[%clk 0:00:00]} 18. b3 {[%clk 0:00:00]}  b6 {[%clk 0:00:00]} 19. Rd2 {[%clk 0:00:00]}  Kf8 {[%clk 0:00:00]} 20. Rhd1 {[%clk 0:00:00]}  Ke7 {[%clk 0:00:00]} 21. Ne2 {[%clk 0:00:00]}  Rf6 {[%clk 0:00:00]} 22. Nd4 {[%clk 0:00:00]}  Rf4 {[%clk 0:00:00]} 23. Nf3 {[%clk 0:00:00]}  Rxe4 {[%clk 0:00:00]} 24. Nxe5 {[%clk 0:00:00]}  Rxe5 {[%clk 0:00:00]} 25. Rd7+ {[%clk 0:00:00]}  Kf8 {[%clk 0:00:00]} 26. Rc7 {[%clk 0:00:00]}  Rae8 {[%clk 0:00:00]} 27. Rxa7 {[%clk 0:00:00]}  Re2 {[%clk 0:00:00]} 28. Rd2 {[%clk 0:00:00]}  Re1+ {[%clk 0:00:00]} 29. Rd1 {[%clk 0:00:00]}  R8e2 {[%clk 0:00:00]} 30. Ra6 {[%clk 0:00:00]}  Rxd1+ {[%clk 0:00:00]} 31. Kxd1 {[%clk 0:00:00]}  Rxg2 {[%clk 0:00:00]} 32. a4 {[%clk 0:00:00]}  h5 {[%clk 0:00:00]} 33. Rxb6 {[%clk 0:00:00]}  h4 {[%clk 0:00:00]} 34. Rxc6 {[%clk 0:00:00]}  g5 {[%clk 0:00:00]} 35. a5 {[%clk 0:00:00]}  g4 {[%clk 0:00:00]} 36. hxg4 {[%clk 0:00:00]}  h3 {[%clk 0:00:00]} 37. a6 {[%clk 0:00:00]}  Kg7 {[%clk 0:00:00]} 38. Rc5 {[%clk 0:00:00]}  Ra2 {[%clk 0:00:00]} 39. Rh5 {[%clk 0:00:00]}  h2 {[%clk 0:00:00]} 40. Kc1 {[%clk 0:00:00]}  Rxa6 {[%clk 0:00:00]} 41. Rxh2 {[%clk 0:00:00]}  Ra1+ {[%clk 0:00:00]} 42. Kb2 {[%clk 0:00:00]}  Rg1 {[%clk 0:00:00]} 43. Rh4 {[%clk 0:00:00]}  Kg6 {[%clk 0:00:00]} 44. b4 {[%clk 0:00:00]}  Kg5 {[%clk 0:00:00]} 45. Rh7 {[%clk 0:00:00]}  f6 {[%clk 0:00:00]} 46. Rg7+ {[%clk 0:00:00]}  Kf4 {[%clk 0:00:00]} 47. b5 {[%clk 0:00:00]}  Rg3 {[%clk 0:00:00]} 48. b6 {[%clk 0:00:00]} 1-0


[Site "https://www.chess.com"]

[Event "Titled Tuesday Blitz August 16 Late 2022"]
[White "Amburgy, Ryan"]
[Black "Gheorghiu, Calin"]
[WhiteFideId "30924820"]
[BlackFideId "1200305"]
[WhiteElo "2066"]
[BlackElo "2168"]
[Result "0-1"]
[Round "01"]
[TimeControl "180+1"]
[Date "2022.08.18"]
[WhiteClock "0:00:00"]
[BlackClock "0:00:00"]

1. d4 {[%clk 0:00:00]}  Nf6 {[%clk 0:00:00]} 2. Nc3 {[%clk 0:00:00]}  d5 {[%clk 0:00:00]} 3. Bf4 {[%clk 0:00:00]}  a6 {[%clk 0:00:00]} 4. e3 {[%clk 0:00:00]}  e6 {[%clk 0:00:00]} 5. g4 {[%clk 0:00:00]}  h6 {[%clk 0:00:00]} 6. Bd3 {[%clk 0:00:00]}  c5 {[%clk 0:00:00]} 7. dxc5 {[%clk 0:00:00]}  Bxc5 {[%clk 0:00:00]} 8. Nf3 {[%clk 0:00:00]}  Nc6 {[%clk 0:00:00]} 9. a3 {[%clk 0:00:00]}  Bd6 {[%clk 0:00:00]} 10. Bxd6 {[%clk 0:00:00]}  Qxd6 {[%clk 0:00:00]} 11. e4 {[%clk 0:00:00]}  d4 {[%clk 0:00:00]} 12. Ne2 {[%clk 0:00:00]}  e5 {[%clk 0:00:00]} 13. h3 {[%clk 0:00:00]}  Be6 {[%clk 0:00:00]} 14. Ng3 {[%clk 0:00:00]}  g6 {[%clk 0:00:00]} 15. Qd2 {[%clk 0:00:00]}  Nd7 {[%clk 0:00:00]} 16. Nf5 {[%clk 0:00:00]}  gxf5 {[%clk 0:00:00]} 17. gxf5 {[%clk 0:00:00]}  Nc5 {[%clk 0:00:00]} 18. fxe6 {[%clk 0:00:00]}  Nxe6 {[%clk 0:00:00]} 19. O-O-O {[%clk 0:00:00]}  O-O-O {[%clk 0:00:00]} 20. Nh4 {[%clk 0:00:00]}  Ne7 {[%clk 0:00:00]} 21. Kb1 {[%clk 0:00:00]}  Nf4 {[%clk 0:00:00]} 22. Rdg1 {[%clk 0:00:00]}  Rhg8 {[%clk 0:00:00]} 23. Rg3 {[%clk 0:00:00]}  Qf6 {[%clk 0:00:00]} 24. Rhg1 {[%clk 0:00:00]}  Qxh4 {[%clk 0:00:00]} 25. Qa5 {[%clk 0:00:00]}  Qf6 {[%clk 0:00:00]} 26. Qc5+ {[%clk 0:00:00]}  Kb8 {[%clk 0:00:00]} 27. Rxg8 {[%clk 0:00:00]}  Nxg8 {[%clk 0:00:00]} 28. Bc4 {[%clk 0:00:00]}  Ne7 {[%clk 0:00:00]} 29. Rg3 {[%clk 0:00:00]}  Qd6 {[%clk 0:00:00]} 30. Qa5 {[%clk 0:00:00]}  Nc6 {[%clk 0:00:00]} 31. Qd2 {[%clk 0:00:00]}  f6 {[%clk 0:00:00]} 32. h4 {[%clk 0:00:00]}  Qc5 {[%clk 0:00:00]} 33. Bb3 {[%clk 0:00:00]}  d3 {[%clk 0:00:00]} 34. cxd3 {[%clk 0:00:00]}  Nd4 {[%clk 0:00:00]} 35. Bc4 {[%clk 0:00:00]}  b5 {[%clk 0:00:00]} 36. Bf7 {[%clk 0:00:00]}  Rd7 {[%clk 0:00:00]} 37. Ba2 {[%clk 0:00:00]}  Kb7 {[%clk 0:00:00]} 38. Rg8 {[%clk 0:00:00]}  Rc7 {[%clk 0:00:00]} 39. Rd8 {[%clk 0:00:00]}  Nde2 {[%clk 0:00:00]} 40. Bd5+ {[%clk 0:00:00]}  Nxd5 {[%clk 0:00:00]} 41. Rxd5 {[%clk 0:00:00]}  Qc1+ {[%clk 0:00:00]} 42. Qxc1 {[%clk 0:00:00]}  Rxc1+ {[%clk 0:00:00]} 43. Ka2 {[%clk 0:00:00]}  Nf4 {[%clk 0:00:00]} 44. Rd6 {[%clk 0:00:00]}  Rc6 {[%clk 0:00:00]} 45. Rd7+ {[%clk 0:00:00]}  Kb6 {[%clk 0:00:00]} 46. Rh7 {[%clk 0:00:00]}  h5 {[%clk 0:00:00]} 47. Rh6 {[%clk 0:00:00]}  Rd6 {[%clk 0:00:00]} 48. Kb1 {[%clk 0:00:00]}  Nxd3 {[%clk 0:00:00]} 49. f3 {[%clk 0:00:00]}  Nf4 {[%clk 0:00:00]} 50. Kc2 {[%clk 0:00:00]}  Kc5 {[%clk 0:00:00]} 51. Kc3 {[%clk 0:00:00]}  Ne2+ {[%clk 0:00:00]} 52. Kc2 {[%clk 0:00:00]}  Nf4 {[%clk 0:00:00]} 53. Kc3 {[%clk 0:00:00]}  Rc6 {[%clk 0:00:00]} 54. b4+ {[%clk 0:00:00]}  Kd6+ {[%clk 0:00:00]} 55. Kb3 {[%clk 0:00:00]}  Ke6 {[%clk 0:00:00]} 56. Rh8 {[%clk 0:00:00]}  Ne2 {[%clk 0:00:00]} 57. Rxh5 {[%clk 0:00:00]}  Nd4+ {[%clk 0:00:00]} 58. Kb2 {[%clk 0:00:00]}  Rc2+ {[%clk 0:00:00]} 59. Kb1 {[%clk 0:00:00]}  Rf2 {[%clk 0:00:00]} 60. Rh7 {[%clk 0:00:00]}  Rxf3 {[%clk 0:00:00]} 61. Kb2 {[%clk 0:00:00]}  Rb3+ {[%clk 0:00:00]} 62. Ka2 {[%clk 0:00:00]}  Re3 {[%clk 0:00:00]} 63. h5 {[%clk 0:00:00]}  Rxe4 {[%clk 0:00:00]} 64. h6 {[%clk 0:00:00]}  Rh4 {[%clk 0:00:00]} 65. Rh8 {[%clk 0:00:00]}  Kf7 {[%clk 0:00:00]} 66. Ra8 {[%clk 0:00:00]}  Rxh6 {[%clk 0:00:00]} 67. Rxa6 {[%clk 0:00:00]}  Rh2+ {[%clk 0:00:00]} 68. Kb1 {[%clk 0:00:00]}  f5 {[%clk 0:00:00]} 69. Rd6 {[%clk 0:00:00]}  f4 {[%clk 0:00:00]} 70. Rd7+ {[%clk 0:00:00]}  Ke6 {[%clk 0:00:00]} 71. Rd8 {[%clk 0:00:00]}  f3 {[%clk 0:00:00]} 72. Rf8 {[%clk 0:00:00]}  Kd5 {[%clk 0:00:00]} 73. Kc1 {[%clk 0:00:00]}  Ke4 {[%clk 0:00:00]} 74. Kd1 {[%clk 0:00:00]}  Ra2 {[%clk 0:00:00]} 75. Ra8 {[%clk 0:00:00]}  f2 {[%clk 0:00:00]} 76. Rf8 {[%clk 0:00:00]}  Nf3 {[%clk 0:00:00]} 77. a4 {[%clk 0:00:00]}  f1=Q# {[%clk 0:00:00]} 0-1


[Site "https://www.chess.com"]

[Event "Titled Tuesday Blitz August 16 Late 2022"]
[White "Ardila, Oscar Humberto"]
[Black "Wu, Rochelle"]
[WhiteFideId "4404742"]
[BlackFideId "30908132"]
[WhiteElo "1939"]
[BlackElo "2168"]
[Result "1-0"]
[Round "01"]
[TimeControl "180+1"]
[Date "2022.08.18"]
[WhiteClock "0:00:00"]
[BlackClock "0:00:00"]

1. d4 {[%clk 0:00:00]}  d5 {[%clk 0:00:00]} 2. c4 {[%clk 0:00:00]}  c6 {[%clk 0:00:00]} 3. e3 {[%clk 0:00:00]}  Nf6 {[%clk 0:00:00]} 4. Nc3 {[%clk 0:00:00]}  Bf5 {[%clk 0:00:00]} 5. Nf3 {[%clk 0:00:00]}  dxc4 {[%clk 0:00:00]} 6. Bxc4 {[%clk 0:00:00]}  e6 {[%clk 0:00:00]} 7. O-O {[%clk 0:00:00]}  Nbd7 {[%clk 0:00:00]} 8. Qb3 {[%clk 0:00:00]}  Qb6 {[%clk 0:00:00]} 9. Ne5 {[%clk 0:00:00]}  Nxe5 {[%clk 0:00:00]} 10. dxe5 {[%clk 0:00:00]}  Nd7 {[%clk 0:00:00]} 11. Qxb6 {[%clk 0:00:00]}  axb6 {[%clk 0:00:00]} 12. f4 {[%clk 0:00:00]}  b5 {[%clk 0:00:00]} 13. Bb3 {[%clk 0:00:00]}  Nc5 {[%clk 0:00:00]} 14. Bd1 {[%clk 0:00:00]}  Be7 {[%clk 0:00:00]} 15. Be2 {[%clk 0:00:00]}  O-O {[%clk 0:00:00]} 16. Bd2 {[%clk 0:00:00]}  Rfd8 {[%clk 0:00:00]} 17. Be1 {[%clk 0:00:00]}  b4 {[%clk 0:00:00]} 18. Nd1 {[%clk 0:00:00]}  Nd3 {[%clk 0:00:00]} 19. h3 {[%clk 0:00:00]}  Bc5 {[%clk 0:00:00]} 20. g4 {[%clk 0:00:00]}  Be4 {[%clk 0:00:00]} 21. Kh2 {[%clk 0:00:00]}  Nxe1 {[%clk 0:00:00]} 22. Rxe1 {[%clk 0:00:00]}  Rd2 {[%clk 0:00:00]} 23. Kg3 {[%clk 0:00:00]}  Rad8 {[%clk 0:00:00]} 24. Bf3 {[%clk 0:00:00]}  Bxf3 {[%clk 0:00:00]} 25. Kxf3 {[%clk 0:00:00]}  Rh2 {[%clk 0:00:00]} 26. Nf2 {[%clk 0:00:00]}  Rd2 {[%clk 0:00:00]} 27. Re2 {[%clk 0:00:00]}  Rxe2 {[%clk 0:00:00]} 28. Kxe2 {[%clk 0:00:00]}  Be7 {[%clk 0:00:00]} 29. Rh1 {[%clk 0:00:00]}  Rxh1 {[%clk 0:00:00]} 30. Nxh1 {[%clk 0:00:00]}  Kf8 {[%clk 0:00:00]} 31. Nf2 {[%clk 0:00:00]}  Ke8 {[%clk 0:00:00]} 32. Kd3 {[%clk 0:00:00]}  Kd7 {[%clk 0:00:00]} 33. Ne4 {[%clk 0:00:00]}  Kc7 {[%clk 0:00:00]} 34. Kc4 {[%clk 0:00:00]}  b5+ {[%clk 0:00:00]} 35. Kd3 {[%clk 0:00:00]}  c5 {[%clk 0:00:00]} 36. Nd2 {[%clk 0:00:00]}  Kc6 {[%clk 0:00:00]} 37. Ke4 {[%clk 0:00:00]}  c4 {[%clk 0:00:00]} 38. Nf3 {[%clk 0:00:00]}  c3 {[%clk 0:00:00]} 39. bxc3 {[%clk 0:00:00]}  bxc3 {[%clk 0:00:00]} 40. Kd3 {[%clk 0:00:00]}  b4 {[%clk 0:00:00]} 41. Kc4 {[%clk 0:00:00]}  Bc5 {[%clk 0:00:00]} 42. Kd3 {[%clk 0:00:00]}  Kb5 {[%clk 0:00:00]} 43. Ne1 {[%clk 0:00:00]}  Ka4 {[%clk 0:00:00]} 44. Nc2 {[%clk 0:00:00]}  Bb6 {[%clk 0:00:00]} 45. e4 {[%clk 0:00:00]}  b3 {[%clk 0:00:00]} 46. axb3+ {[%clk 0:00:00]}  Kxb3 {[%clk 0:00:00]} 47. f5 {[%clk 0:00:00]}  Bc7 {[%clk 0:00:00]} 48. fxe6 {[%clk 0:00:00]}  fxe6 {[%clk 0:00:00]} 49. Nd4+ {[%clk 0:00:00]}  Kb2 {[%clk 0:00:00]} 50. Nc2 {[%clk 0:00:00]}  Bxe5 {[%clk 0:00:00]} 51. Ne3 {[%clk 0:00:00]}  Bf4 {[%clk 0:00:00]} 52. Nd1+ {[%clk 0:00:00]}  Kc1 {[%clk 0:00:00]} 53. Nxc3 {[%clk 0:00:00]}  Be5 {[%clk 0:00:00]} 54. Ne2+ {[%clk 0:00:00]}  Kd1 {[%clk 0:00:00]} 55. Ke3 {[%clk 0:00:00]}  Ke1 {[%clk 0:00:00]} 56. Kf3 {[%clk 0:00:00]}  Kd2 {[%clk 0:00:00]} 57. h4 {[%clk 0:00:00]}  g6 {[%clk 0:00:00]} 58. g5 {[%clk 0:00:00]}  Kd3 {[%clk 0:00:00]} 59. Ng1 {[%clk 0:00:00]}  Kd2 {[%clk 0:00:00]} 60. Ne2 {[%clk 0:00:00]}  Kc2 {[%clk 0:00:00]} 61. Nf4 {[%clk 0:00:00]}  Bxf4 {[%clk 0:00:00]} 62. Kxf4 {[%clk 0:00:00]}  Kd3 {[%clk 0:00:00]} 63. Ke5 {[%clk 0:00:00]}  Ke3 {[%clk 0:00:00]} 64. Kxe6 {[%clk 0:00:00]}  Kxe4 {[%clk 0:00:00]} 65. Kf6 {[%clk 0:00:00]}  Kf4 {[%clk 0:00:00]} 66. Kg7 {[%clk 0:00:00]}  Kg4 {[%clk 0:00:00]} 67. Kxh7 {[%clk 0:00:00]}  Kxh4 {[%clk 0:00:00]} 68. Kxg6 {[%clk 0:00:00]} 1-0


[Site "https://www.chess.com"]

[Event "Titled Tuesday Blitz August 16 Late 2022"]
[White "Atanasov, Anthony"]
[Black "Sailer, Mike"]
[WhiteFideId "2623897"]
[BlackFideId "2012901"]
[WhiteElo "1928"]
[BlackElo "2109"]
[Result "1-0"]
[Round "01"]
[TimeControl "180+1"]
[Date "2022.08.18"]
[WhiteClock "0:00:00"]
[BlackClock "0:00:00"]

1. d4 {[%clk 0:00:00]}  d5 {[%clk 0:00:00]} 2. Bf4 {[%clk 0:00:00]}  Nf6 {[%clk 0:00:00]} 3. e3 {[%clk 0:00:00]}  c6 {[%clk 0:00:00]} 4. Nf3 {[%clk 0:00:00]}  Bf5 {[%clk 0:00:00]} 5. Bd3 {[%clk 0:00:00]}  Bxd3 {[%clk 0:00:00]} 6. cxd3 {[%clk 0:00:00]}  e6 {[%clk 0:00:00]} 7. Nc3 {[%clk 0:00:00]}  Be7 {[%clk 0:00:00]} 8. O-O {[%clk 0:00:00]}  O-O {[%clk 0:00:00]} 9. e4 {[%clk 0:00:00]}  c5 {[%clk 0:00:00]} 10. dxc5 {[%clk 0:00:00]}  Bxc5 {[%clk 0:00:00]} 11. Qb3 {[%clk 0:00:00]}  dxe4 {[%clk 0:00:00]} 12. Qxb7 {[%clk 0:00:00]}  exf3 {[%clk 0:00:00]} 13. Qxa8 {[%clk 0:00:00]}  fxg2 {[%clk 0:00:00]} 14. Qxg2 {[%clk 0:00:00]}  Qxd3 {[%clk 0:00:00]} 15. Bh6 {[%clk 0:00:00]}  Nh5 {[%clk 0:00:00]} 16. Ne4 {[%clk 0:00:00]}  Be7 {[%clk 0:00:00]} 17. Rac1 {[%clk 0:00:00]}  Kh8 {[%clk 0:00:00]} 18. Rfd1 {[%clk 0:00:00]}  Qb5 {[%clk 0:00:00]} 19. Rc7 {[%clk 0:00:00]}  gxh6 {[%clk 0:00:00]} 20. Rxe7 {[%clk 0:00:00]}  Rg8 {[%clk 0:00:00]} 21. Qxg8+ {[%clk 0:00:00]}  Kxg8 {[%clk 0:00:00]} 22. Rd8+ {[%clk 0:00:00]}  Kg7 {[%clk 0:00:00]} 23. Ree8 {[%clk 0:00:00]}  Nf6 {[%clk 0:00:00]} 24. Rxb8 {[%clk 0:00:00]}  Qe2 {[%clk 0:00:00]} 25. Nxf6 {[%clk 0:00:00]}  Kxf6 {[%clk 0:00:00]} 26. Rg8 {[%clk 0:00:00]}  Qe1+ {[%clk 0:00:00]} 27. Kg2 {[%clk 0:00:00]}  Qe4+ {[%clk 0:00:00]} 28. Kf1 {[%clk 0:00:00]}  Qd3+ {[%clk 0:00:00]} 29. Ke1 {[%clk 0:00:00]}  Qb1+ {[%clk 0:00:00]} 30. Kd2 {[%clk 0:00:00]}  Qxa2 {[%clk 0:00:00]} 31. Rb4 {[%clk 0:00:00]}  Qd5+ {[%clk 0:00:00]} 32. Kc3 {[%clk 0:00:00]}  Qc5+ {[%clk 0:00:00]} 33. Rc4 {[%clk 0:00:00]}  Qxf2 {[%clk 0:00:00]} 34. h4 {[%clk 0:00:00]}  Qe1+ {[%clk 0:00:00]} 35. Kb3 {[%clk 0:00:00]}  Qd1+ {[%clk 0:00:00]} 36. Ka2 {[%clk 0:00:00]}  Qd5 {[%clk 0:00:00]} 37. Rg4 {[%clk 0:00:00]}  h5 {[%clk 0:00:00]} 38. Rf4+ {[%clk 0:00:00]}  Ke7 {[%clk 0:00:00]} 39. Rd4 {[%clk 0:00:00]}  Qe5 {[%clk 0:00:00]} 40. Re4 {[%clk 0:00:00]}  Qd5 {[%clk 0:00:00]} 41. Rd4 {[%clk 0:00:00]}  Qe5 {[%clk 0:00:00]} 42. Ra4 {[%clk 0:00:00]}  f5 {[%clk 0:00:00]} 43. Rxa7+ {[%clk 0:00:00]}  Kf6 {[%clk 0:00:00]} 44. Raa4 {[%clk 0:00:00]}  Qg3 {[%clk 0:00:00]} 45. Rac4 {[%clk 0:00:00]}  h6 {[%clk 0:00:00]} 46. b3 {[%clk 0:00:00]}  Qf2+ {[%clk 0:00:00]} 47. Ka3 {[%clk 0:00:00]}  Qe1 {[%clk 0:00:00]} 48. Ka4 {[%clk 0:00:00]}  Qa1+ {[%clk 0:00:00]} 49. Kb5 {[%clk 0:00:00]}  Qa7 {[%clk 0:00:00]} 50. b4 {[%clk 0:00:00]}  Qb7+ {[%clk 0:00:00]} 51. Ka4 {[%clk 0:00:00]}  Qa8+ {[%clk 0:00:00]} 52. Kb3 {[%clk 0:00:00]}  Qf3+ {[%clk 0:00:00]} 53. Rc3 {[%clk 0:00:00]}  Qe2 {[%clk 0:00:00]} 54. Rcd3 {[%clk 0:00:00]}  Qe1 {[%clk 0:00:00]} 55. b5 {[%clk 0:00:00]}  Qb1+ {[%clk 0:00:00]} 56. Kc4 {[%clk 0:00:00]}  Qc2+ {[%clk 0:00:00]} 57. Kb4 {[%clk 0:00:00]}  Qb2+ {[%clk 0:00:00]} 58. Kc5 {[%clk 0:00:00]}  Qc2+ {[%clk 0:00:00]} 59. Kb6 {[%clk 0:00:00]}  Ke5 {[%clk 0:00:00]} 60. Rd6 {[%clk 0:00:00]}  f4 {[%clk 0:00:00]} 61. Rc6 {[%clk 0:00:00]}  Kf5 {[%clk 0:00:00]} 62. Rxc2 {[%clk 0:00:00]} 1-0


[Site "https://www.chess.com"]

[Event "Titled Tuesday Blitz August 16 Late 2022"]
[White "Baches Garcia, Guillermo"]
[Black "Grischuk, Alexander"]
[WhiteFideId "2209764"]
[BlackFideId "4126025"]
[WhiteElo "2546"]
[BlackElo "2762"]
[Result "0-1"]
[Round "01"]
[TimeControl "180+1"]
[Date "2022.08.16"]
[WhiteClock "0:00:01"]
[BlackClock "0:00:08"]

1. e4 {[%clk 0:02:59]}  e6 {[%clk 0:03:00]} 2. d4 {[%clk 0:02:58]}  d5 {[%clk 0:03:00]} 3. exd5 {[%clk 0:02:59]}  exd5 {[%clk 0:03:01]} 4. Nf3 {[%clk 0:03:00]}  Nc6 {[%clk 0:03:02]} 5. Bb5 {[%clk 0:03:00]}  Bd6 {[%clk 0:03:01]} 6. c4 {[%clk 0:03:00]}  dxc4 {[%clk 0:02:59]} 7. d5 {[%clk 0:03:01]}  a6 {[%clk 0:02:59]} 8. Ba4 {[%clk 0:03:01]}  b5 {[%clk 0:02:59]} 9. dxc6 {[%clk 0:03:02]}  bxa4 {[%clk 0:03:00]} 10. Qxa4 {[%clk 0:03:02]}  Ne7 {[%clk 0:02:54]} 11. O-O {[%clk 0:03:01]}  O-O {[%clk 0:02:54]} 12. Nbd2 {[%clk 0:03:01]}  c3 {[%clk 0:02:52]} 13. bxc3 {[%clk 0:02:59]}  Be6 {[%clk 0:02:46]} 14. Nc4 {[%clk 0:02:54]}  Bd5 {[%clk 0:02:40]} 15. Nxd6 {[%clk 0:02:51]}  cxd6 {[%clk 0:02:19]} 16. Nd4 {[%clk 0:02:39]}  Qc7 {[%clk 0:02:17]} 17. Bf4 {[%clk 0:02:29]}  Bxc6 {[%clk 0:02:11]} 18. Nxc6 {[%clk 0:02:24]}  Nxc6 {[%clk 0:02:12]} 19. Rfd1 {[%clk 0:02:19]}  Rfd8 {[%clk 0:02:08]} 20. c4 {[%clk 0:02:10]}  Ne7 {[%clk 0:01:35]} 21. Rac1 {[%clk 0:02:02]}  Qc5 {[%clk 0:01:16]} 22. Be3 {[%clk 0:01:44]}  Qc7 {[%clk 0:01:15]} 23. Bf4 {[%clk 0:01:43]}  Qc5 {[%clk 0:01:12]} 24. Be3 {[%clk 0:01:43]}  Qe5 {[%clk 0:01:00]} 25. Bb6 {[%clk 0:01:22]}  Rdc8 {[%clk 0:01:00]} 26. Qd7 {[%clk 0:01:03]}  Nf5 {[%clk 0:00:59]} 27. Re1 {[%clk 0:00:51]}  Qf6 {[%clk 0:00:55]} 28. c5 {[%clk 0:00:46]}  dxc5 {[%clk 0:00:38]} 29. Rxc5 {[%clk 0:00:46]}  Rf8 {[%clk 0:00:38]} 30. Rxf5 {[%clk 0:00:26]}  Qxb6 {[%clk 0:00:38]} 31. g3 {[%clk 0:00:23]}  Rad8 {[%clk 0:00:38]} 32. Qe7 {[%clk 0:00:17]}  g6 {[%clk 0:00:23]} 33. Rf6 {[%clk 0:00:17]}  Qa5 {[%clk 0:00:22]} 34. a3 {[%clk 0:00:07]}  Rd7 {[%clk 0:00:15]} 35. Qxd7 {[%clk 0:00:05]}  Qxe1+ {[%clk 0:00:14]} 36. Kg2 {[%clk 0:00:05]}  Qe4+ {[%clk 0:00:14]} 37. Kg1 {[%clk 0:00:05]}  a5 {[%clk 0:00:14]} 38. Qc6 {[%clk 0:00:04]}  Qe5 {[%clk 0:00:13]} 39. Kg2 {[%clk 0:00:03]}  Rd8 {[%clk 0:00:12]} 40. Rf3 {[%clk 0:00:03]}  Kg7 {[%clk 0:00:10]} 41. Qc4 {[%clk 0:00:03]}  Qd5 {[%clk 0:00:10]} 42. Qf4 {[%clk 0:00:01]}  Rd6 {[%clk 0:00:08]} 0-1


[Site "https://www.chess.com"]

[Event "Titled Tuesday Blitz August 16 Late 2022"]
[White "Barria Zuniga, Daniel"]
[Black "Diem, Thomas"]
[WhiteFideId "3400816"]
[BlackFideId "30937841"]
[WhiteElo "2414"]
[BlackElo "1998"]
[Result "1-0"]
[Round "01"]
[TimeControl "180+1"]
[Date "2022.08.18"]
[WhiteClock "0:00:00"]
[BlackClock "0:00:00"]

1. d4 {[%clk 0:00:00]}  d5 {[%clk 0:00:00]} 2. c4 {[%clk 0:00:00]}  c6 {[%clk 0:00:00]} 3. Nf3 {[%clk 0:00:00]}  Nf6 {[%clk 0:00:00]} 4. Nc3 {[%clk 0:00:00]}  e6 {[%clk 0:00:00]} 5. Bg5 {[%clk 0:00:00]}  Nbd7 {[%clk 0:00:00]} 6. e3 {[%clk 0:00:00]}  Qa5 {[%clk 0:00:00]} 7. Nd2 {[%clk 0:00:00]}  Bb4 {[%clk 0:00:00]} 8. Qc2 {[%clk 0:00:00]}  Ne4 {[%clk 0:00:00]} 9. Ndxe4 {[%clk 0:00:00]}  dxe4 {[%clk 0:00:00]} 10. Bh4 {[%clk 0:00:00]}  Bxc3+ {[%clk 0:00:00]} 11. Qxc3 {[%clk 0:00:00]}  Qxc3+ {[%clk 0:00:00]} 12. bxc3 {[%clk 0:00:00]}  f5 {[%clk 0:00:00]} 13. a4 {[%clk 0:00:00]}  Kf7 {[%clk 0:00:00]} 14. f3 {[%clk 0:00:00]}  exf3 {[%clk 0:00:00]} 15. gxf3 {[%clk 0:00:00]}  Nf6 {[%clk 0:00:00]} 16. a5 {[%clk 0:00:00]}  a6 {[%clk 0:00:00]} 17. Kd2 {[%clk 0:00:00]}  c5 {[%clk 0:00:00]} 18. Bd3 {[%clk 0:00:00]}  Bd7 {[%clk 0:00:00]} 19. Rhb1 {[%clk 0:00:00]}  Bc6 {[%clk 0:00:00]} 20. Bxf6 {[%clk 0:00:00]}  Kxf6 {[%clk 0:00:00]} 21. e4 {[%clk 0:00:00]}  Rab8 {[%clk 0:00:00]} 22. Rb6 {[%clk 0:00:00]}  fxe4 {[%clk 0:00:00]} 23. fxe4 {[%clk 0:00:00]}  Ke7 {[%clk 0:00:00]} 24. Rab1 {[%clk 0:00:00]}  Rhf8 {[%clk 0:00:00]} 25. d5 {[%clk 0:00:00]}  Bd7 {[%clk 0:00:00]} 26. Rxb7 {[%clk 0:00:00]}  Rxb7 {[%clk 0:00:00]} 27. Rxb7 {[%clk 0:00:00]}  Rf2+ {[%clk 0:00:00]} 28. Ke3 {[%clk 0:00:00]}  Ra2 {[%clk 0:00:00]} 29. e5 {[%clk 0:00:00]}  Rxa5 {[%clk 0:00:00]} 30. d6+ {[%clk 0:00:00]}  Kd8 {[%clk 0:00:00]} 31. Rb8+ {[%clk 0:00:00]}  Bc8 {[%clk 0:00:00]} 32. Bxh7 {[%clk 0:00:00]}  Ra2 {[%clk 0:00:00]} 33. Be4 {[%clk 0:00:00]}  Kd7 {[%clk 0:00:00]} 34. Ra8 {[%clk 0:00:00]}  a5 {[%clk 0:00:00]} 35. Ra7+ {[%clk 0:00:00]}  Kd8 {[%clk 0:00:00]} 36. Rxg7 {[%clk 0:00:00]}  Rxh2 {[%clk 0:00:00]} 37. Bc6 {[%clk 0:00:00]}  Rh8 {[%clk 0:00:00]} 38. Kd2 {[%clk 0:00:00]}  Rh2+ {[%clk 0:00:00]} 39. Kc1 {[%clk 0:00:00]}  Rh8 {[%clk 0:00:00]} 40. Kb2 {[%clk 0:00:00]}  a4 {[%clk 0:00:00]} 41. Ka3 {[%clk 0:00:00]}  Bd7 {[%clk 0:00:00]} 42. Rxd7+ {[%clk 0:00:00]}  Kc8 {[%clk 0:00:00]} 43. Ra7 {[%clk 0:00:00]} 1-0


[Site "https://www.chess.com"]